bitfinex-derivatives/quotes_ETHF0:USTF0_20260131
["timestamp","ask_amount","ask_price","bid_price","bid_amount"]
[1769844790814,3.52511217,2681.6,2680.1,0.18686]
[1769844791209,3.52511217,2681.4,2680.1,0.18686]
[1769844791613,3.74534693,2681.3,2680.3,0.18685]
[1769844791816,2.21538697,2681.3,2680.4,3.8715736]
[1769844792014,0.00469778,2681.4,2680.4,3.8715736]
[1769844792414,3.64470347,2681.2,2680.6,3.6847336]
[1769844792614,0.00469778,2681.4,2680.6,3.6847336]
[1769844793414,3.95675984,2681.3,2680.6,3.6847336]
[1769844793822,7.48187201,2681.3,2680.5,0.18683]
[1769844794013,7.48187201,2681.3,2680.6,0.18683]
[1769844794014,3.57725984,2681.3,2680.6,0.18683]
[1769844794323,3.52980995,2681.4,2680.4,3.6847336]
[1769844794518,0.00469778,2681.4,2680.4,3.6847336]
[1769844794915,3.52511217,2682.2,2680.8,3.8715436]
[1769844795323,4.06220808,2681.9,2680.8,3.8715436]
[1769844795621,3.73,2682.7,2679.6,3.729]
[1769844795622,3.52511217,2682.6,2681.0,3.6847336]
[1769844795823,3.52511217,2682.6,2681.3,3.6847336]
[1769844796027,3.52511217,2682.3,2681.3,3.68763014]
[1769844797320,3.52851806,2682.6,2681.3,3.68763014]
[1769844797830,7.7262657,2682.5,2681.3,3.68763014]
[1769844799331,3.52511217,2682.4,2681.3,3.68763014]
[1769844799530,3.52511217,2682.4,2681.3,3.87441014]
[1769844799826,0.00340589,2682.6,2681.7,3.6847336]
[1769844800032,0.00340589,2682.6,2681.9,3.8714736]
[1769844800327,3.73,2683.2,2682.1,3.6847336]
[1769844800520,7.25511217,2683.2,2682.1,3.8714536]
[1769844800722,7.42001134,2683.1,2682.1,0.18672]
[1769844801027,3.52511217,2683.0,2682.1,0.18672]
[1769844801220,3.52979597,2683.0,2682.1,3.8714536]
[1769844801420,3.52979597,2683.0,2682.1,0.18672]
[1769844801621,3.52511217,2682.8,2681.5,3.6847336]
[1769844802027,4.12671529,2682.7,2681.8,3.6847336]
[1769844802626,3.52511217,2682.6,2681.4,3.6847336]
[1769844802822,3.52511217,2682.6,2681.3,3.68763014]
[1769844803128,0.0046838,2683.0,2681.3,3.68763014]
[1769844803129,3.52511217,2682.4,2681.3,0.00289654]
[1769844803323,3.52511217,2682.4,2681.3,3.68763014]
[1769844803524,3.52511217,2682.2,2680.4,2.188]
[1769844803725,3.52511217,2682.0,2680.3,3.8715836]
[1769844804121,3.52511217,2681.8,2680.3,3.8715836]
[1769844804325,3.52511217,2681.8,2680.2,3.731]
[1769844804326,3.52511217,2681.8,2680.6,3.8715536]
[1769844804526,4.14930232,2681.7,2680.7,0.18682]
[1769844804722,7.67441449,2681.7,2680.7,0.18682]
[1769844804929,3.52511217,2681.6,2680.7,0.18682]
[1769844805128,7.67441449,2681.9,2680.8,0.18681]
[1769844805429,3.52511217,2681.9,2680.8,3.8715436]
[1769844805629,4.00368399,2681.8,2680.8,3.8715436]
[1769844805832,4.00368399,2681.8,2680.9,3.6847336]
[1769844806030,3.52511217,2681.9,2680.9,3.6847336]
[1769844806332,3.52511217,2681.9,2679.1,3.728]
[1769844806333,3.52511217,2681.6,2679.7,3.8716236]
[1769844806522,3.52511217,2681.5,2679.7,3.8716236]
[1769844806721,3.52511217,2681.3,2679.7,3.8716236]
[1769844807130,3.52511217,2681.1,2679.9,3.6847336]
[1769844807323,3.52511217,2681.1,2678.5,0.30262461]
[1769844807324,3.52956996,2681.1,2679.7,0.00110646]
[1769844807528,3.52511217,2680.9,2679.3,2.8716536]
[1769844807929,0.00445779,2681.1,2679.3,2.8716536]
[1769844807930,3.52511217,2680.7,2679.3,2.8716536]
[1769844808126,3.52511217,2680.6,2678.7,0.06493864]
[1769844808438,3.52511217,2680.6,2677.1,11.44980804]
[1769844808439,3.52511217,2679.8,2677.9,0.18701]
[1769844808734,3.52511217,2679.6,2678.0,0.18701]
[1769844808927,3.52511217,2679.6,2677.1,0.25558083]
[1769844809232,4.23434681,2679.7,2677.1,0.06851083]
[1769844809233,4.26251738,2679.5,2677.1,0.06851083]
[1769844809432,3.52511217,2680.0,2678.7,3.8716936]
[1769844809733,4.02450875,2679.6,2678.7,3.8716936]
[1769844809928,4.02450875,2679.7,2678.7,3.8716936]
[1769844810125,3.52511217,2679.9,2678.7,0.18696]
[1769844810332,4.2475048,2679.6,2678.7,3.8716936]
[1769844810526,4.2475048,2679.8,2678.9,3.6847336]
[1769844810834,3.52511217,2680.3,2679.2,3.6847336]
[1769844811031,4.2475048,2680.5,2679.2,3.6882813]
[1769844811233,3.52956996,2681.1,2679.7,3.6847336]
[1769844811437,3.52956996,2681.1,2679.2,3.7355477]
[1769844811438,0.00445779,2681.1,2680.1,3.6847336]
[1769844811626,0.00445779,2681.1,2680.1,3.8715936]
[1769844812339,7.79e-06,2681.1,2680.1,3.6847336]
[1769844813235,7.79e-06,2681.1,2680.4,0.18684]
[1769844813628,3.52511996,2681.1,2679.7,3.8716236]
[1769844813827,3.52511217,2680.9,2679.7,0.18689]
[1769844814234,7.54289006,2680.8,2679.7,0.18689]
[1769844814436,3.52511217,2680.7,2679.2,2.1925477]
[1769844814830,3.52511217,2680.5,2679.2,2.1925477]
[1769844815139,3.88767453,2680.8,2679.8,3.6847336]
[1769844815638,3.88767453,2680.8,2679.2,2.1925477]
[1769844815639,7.79e-06,2681.1,2680.1,3.6847336]
[1769844815834,7.79e-06,2681.1,2679.7,3.6847336]
[1769844816136,7.79e-06,2681.1,2680.0,3.6847336]
[1769844816434,7.79e-06,2681.1,2680.3,3.8715836]
[1769844818437,7.79e-06,2681.1,2680.5,0.18683]
[1769844818837,7.79e-06,2681.1,2680.6,0.18683]
[1769844819944,3.62960381,2681.7,2680.6,0.18683]
[1769844820240,3.75348952,2681.5,2680.6,0.18683]
[1769844820840,3.75624751,2681.5,2680.6,0.18683]
[1769844824246,3.75624751,2681.5,2680.7,0.18682]
[1769844826745,3.75624751,2681.5,2680.8,0.18681]
[1769844827234,2.18931024,2682.7,2680.7,3.77584652]
[1769844827434,5.92231024,2683.2,2681.6,0.18676]
[1769844827641,4.18327554,2682.6,2681.6,0.18676]
[1769844827841,4.18327554,2682.7,2681.6,0.18676]
[1769844828040,10.85031024,2683.2,2681.0,3.77584652]
[1769844828245,3.94670343,2682.6,2681.0,0.00376404]
[1769844828744,3.94670343,2683.0,2681.0,0.00376404]
[1769844828944,3.94670343,2682.5,2681.3,0.18678]
[1769844829145,3.94670343,2682.6,2681.3,0.18678]
[1769844829344,3.75348952,2682.5,2681.3,0.18678]
[1769844829748,3.75348952,2682.4,2681.3,0.18678]
[1769844829942,3.75348952,2682.4,2681.0,0.00376404]
[1769844830241,3.75348952,2682.2,2681.0,0.19056404]
[1769844830648,3.75348952,2682.0,2681.0,0.19056404]
[1769844831040,3.75348952,2681.8,2681.0,0.19056404]
[1769844831446,3.75348952,2681.6,2681.0,0.19056404]
[1769844831848,4.22763829,2681.5,2681.0,0.19056404]
[1769844832050,3.75348952,2681.5,2681.0,0.19056404]
[1769844832348,2.189,2682.3,2681.1,0.18679]
[1769844832851,4.09082432,2682.2,2681.1,0.18679]
[1769844834450,3.75348952,2682.1,2681.1,0.18679]
[1769844834847,3.75348952,2681.9,2681.1,0.18679]
[1769844835150,3.80260229,2681.8,2681.1,0.18679]
[1769844835445,3.75348952,2681.7,2681.1,0.18679]
[1769844836445,2.18931024,2682.8,2681.0,0.00376404]
[1769844836649,0.00369897,2683.2,2681.2,3.77584652]
[1769844836848,4.11333673,2682.5,2681.2,3.77584652]
[1769844837049,4.11333673,2682.8,2681.2,3.77584652]
[1769844837248,0.00369897,2683.2,2681.2,3.77584652]
[1769844837445,3.96896654,2682.4,2681.2,3.77584652]
[1769844837650,3.96896654,2682.7,2681.2,3.77584652]
[1769844837953,3.96896654,2683.1,2681.2,3.77584652]
[1769844838151,3.96896654,2682.6,2681.9,0.18673]
[1769844838548,3.75348952,2682.7,2681.9,0.18673]
[1769844839754,3.75348952,2682.7,2682.0,0.18673]
[1769844839953,0.00369897,2683.2,2681.1,2.189]
[1769844839954,3.8690613,2683.9,2683.5,0.18662]
[1769844840152,3.75348952,2684.4,2683.5,0.18662]
[1769844840460,3.75348952,2684.1,2682.1,6.179]
[1769844840749,3.75348952,2684.1,2683.0,2.79086166]
[1769844840953,3.75348952,2683.9,2683.0,0.00458317]
[1769844841256,3.72452392,2683.8,2683.2,0.18664]
[1769844841451,3.29109794,2683.8,2683.3,0.18663]
[1769844841656,3.75797591,2684.1,2683.3,0.18663]
[1769844841957,3.75348952,2683.9,2683.3,0.18663]
[1769844842359,3.75797591,2684.1,2683.3,0.18663]
[1769844842656,24.0,2684.0,2683.3,0.18663]
[1769844843059,35.20948952,2684.0,2683.3,0.18663]
[1769844843259,27.75348952,2684.0,2683.3,0.18663]
[1769844843759,0.00448639,2684.1,2683.3,0.18663]
[1769844844053,0.00448639,2684.1,2683.3,3.96247652]
[1769844844453,6.39e-06,2684.1,2683.3,3.77584652]
[1769844845255,6.39e-06,2684.1,2683.5,0.18662]
[1769844846165,6.39e-06,2684.1,2683.5,3.96246652]
[1769844846369,3.75348952,2684.7,2683.7,3.77584652]
[1769844846570,27.75348952,2684.6,2683.2,3.78539646]
[1769844846764,3.75348952,2684.6,2683.2,3.78539646]
[1769844846971,3.77323888,2684.4,2683.2,3.78539646]
[1769844847163,3.77323888,2684.4,2683.7,0.18661]
[1769844847363,11.22923888,2684.2,2683.2,3.78539646]
[1769844847563,3.77323888,2684.2,2683.2,3.78539646]
[1769844848265,3.77323888,2684.2,2683.7,0.18661]
[1769844848669,7.456,2684.0,2683.7,0.18661]
[1769844849069,7.0644,2684.0,2683.7,0.18661]
[1769844849266,6.66919,2684.0,2683.7,0.18661]
[1769844849671,3.77323888,2684.2,2683.7,0.18661]
[1769844849872,6.26796,2684.0,2683.7,0.18661]
[1769844850071,10.04119888,2684.1,2683.7,0.18661]
[1769844850274,6.26796,2684.0,2683.7,0.18661]
[1769844850775,5.89335,2684.0,2683.7,0.18661]
[1769844850969,5.89335,2683.9,2683.7,0.18661]
[1769844851169,5.89335,2684.0,2683.7,0.18661]
[1769844851571,5.51301,2684.0,2683.7,0.18661]
[1769844851773,5.13666,2684.0,2683.7,0.18661]
[1769844851973,4.75756,2684.0,2683.7,0.18661]
[1769844852273,4.38015,2684.0,2683.7,0.18661]
[1769844852473,4.00274,2684.0,2683.7,0.18661]
[1769844852674,3.62314,2684.0,2683.7,0.18661]
[1769844852876,3.23872,2684.0,2683.7,0.18661]
[1769844853073,6.58564888,2684.0,2683.7,0.18661]
[1769844853378,6.17339888,2684.0,2683.7,0.18661]
[1769844853578,5.77523888,2684.0,2683.7,0.18661]
[1769844853876,0.5822,2683.9,2683.7,0.18661]
[1769844854078,3.93657888,2684.0,2683.7,0.18661]
[1769844854279,3.77323888,2684.0,2683.7,0.18661]
[1769844854675,24.0,2684.1,2683.7,0.18661]
[1769844856175,3.77717439,2684.4,2683.7,3.97200646]
[1769844856379,23.59894551,2684.4,2683.8,0.1866]
[1769844858879,0.00393551,2684.4,2683.8,0.1866]
[1769844859282,3.77717439,2684.4,2683.8,0.1866]
[1769844859480,3.77323888,2684.3,2683.4,2.187]
[1769844859787,3.77323888,2684.2,2683.4,2.187]
[1769844861281,3.77323888,2684.2,2683.8,0.1866]
[1769844864578,23.59501,2684.1,2683.8,0.1866]
[1769844865291,0.00393551,2684.4,2683.5,3.78539646]
[1769844865588,3.77324439,2684.4,2684.1,0.18658]
[1769844866086,2.187,2685.2,2684.1,0.18658]
[1769844866383,26.63494633,2685.1,2684.1,0.18658]
[1769844867289,26.63793612,2685.1,2684.1,0.18658]
[1769844868192,3.77323888,2685.0,2684.2,0.18658]
[1769844868391,3.77323888,2684.9,2684.2,0.18658]
[1769844868591,8.04310925,2684.9,2684.2,0.18658]
[1769844868887,3.77323888,2684.8,2684.3,0.18657]
[1769844869092,3.77323888,2684.8,2684.1,6.62882831]
[1769844869093,21.72394,2684.8,2684.6,0.18655]
[1769844869281,20.83662,2684.8,2684.6,0.18655]
[1769844869485,20.4064,2684.8,2684.6,0.18655]
[1769844869685,23.74941888,2684.8,2684.6,0.18655]
[1769844869892,23.74941888,2684.8,2684.4,6.62882831]
[1769844870094,3.77323888,2684.7,2684.4,6.62882831]
[1769844870282,2.92611888,2684.7,2684.4,6.62882831]
[1769844870486,2.46781888,2684.7,2684.4,6.62882831]
[1769844870693,19.97618,2684.8,2684.4,6.62882831]
[1769844870881,19.97618,2684.8,2684.6,0.18655]
[1769844872193,19.59814,2684.8,2684.6,0.18655]
[1769844872390,18.77585,2684.8,2682.7,10.277]
[1769844872694,0.00298979,2685.1,2681.4,11.16762795]
[1769844872695,1.82055535,2683.8,2681.4,11.16762795]
[1769844872892,3.728,2684.6,2680.9,13.03498163]
[1769844872893,33.31275545,2682.8,2680.9,17.73457555]
[1769844873195,33.31275545,2682.6,2681.0,21.62723767]
[1769844873396,3.73846841,2682.5,2681.2,3.84918449]
[1769844873692,3.73846841,2682.4,2681.2,3.8530346]
[1769844874098,4.08424402,2682.3,2681.3,3.7256]
[1769844874593,4.08424402,2682.3,2681.4,3.7256]
[1769844874789,4.08424402,2682.3,2681.2,3.8530346]
[1769844874790,4.08424402,2682.3,2681.3,21.46017555]
[1769844875292,4.08424402,2682.3,2681.4,3.7256]
[1769844875997,4.29734544,2682.3,2681.4,3.7256]
[1769844876390,0.21310142,2682.3,2681.3,17.73457555]
[1769844876701,4.26235469,2682.2,2681.3,21.46017555]
[1769844877193,4.26235469,2682.2,2681.4,3.7256]
[1769844877690,4.26235469,2682.2,2681.5,3.7256]
[1769844877887,4.26235469,2682.2,2681.4,3.7256]
[1769844878300,4.26235469,2682.2,2681.5,3.7256]
[1769844878499,4.26235469,2682.2,2681.4,3.7256]
[1769844878996,4.26235469,2682.2,2681.5,3.7256]
[1769844879299,4.26235469,2682.2,2681.4,3.7256]
[1769844879696,4.26235469,2682.2,2681.5,3.7256]
[1769844879903,4.26235469,2682.2,2681.4,3.7256]
[1769844880398,4.26235469,2682.2,2681.5,3.7256]
[1769844880699,4.26235469,2682.2,2681.4,7.51077038]
[1769844881193,4.26235469,2682.2,2681.5,3.7256]
[1769844881392,4.26235469,2682.2,2681.5,5.9136]
[1769844881593,0.21668954,2682.1,2681.5,3.45846583]
[1769844881800,1.82055535,2681.8,2680.3,3.78765175]
[1769844882198,3.96837642,2681.7,2680.3,3.89599652]
[1769844882902,3.96837642,2681.7,2680.3,3.90036381]
[1769844883097,3.96837642,2681.7,2680.3,0.19121729]
[1769844883401,0.01694254,2681.6,2680.3,0.00436729]
[1769844883696,0.01257525,2681.4,2680.0,2.188]
[1769844884089,0.01257525,2681.2,2680.0,2.188]
[1769844884295,0.01257525,2681.2,2679.8,0.18688]
[1769844884496,0.01257525,2681.0,2679.8,0.19002534]
[1769844884998,0.01257525,2680.8,2679.8,0.19002534]
[1769844885400,4.18278478,2680.7,2679.8,0.19002534]
[1769844885798,4.27479944,2680.8,2679.8,0.19002534]
[1769844886300,4.27479944,2681.0,2679.8,0.19002534]
[1769844886500,4.16653585,2680.7,2679.8,0.19002534]
[1769844886809,4.16653585,2680.8,2680.0,3.89599653]
[1769844886997,4.16653585,2680.9,2680.2,3.89984664]
[1769844887198,4.16653585,2681.2,2680.2,4.08669664]
[1769844887407,4.04132169,2680.8,2680.2,4.08284653]
[1769844887595,2.65132169,2680.8,2680.7,1.58460088]
[1769844887801,3.731,2681.6,2680.2,4.08284653]
[1769844888206,4.04132169,2680.9,2680.2,4.08284653]
[1769844888406,4.04132169,2681.5,2680.2,4.08284653]
[1769844888596,3.731,2681.6,2680.2,4.08284653]
[1769844889004,4.12847319,2681.5,2680.2,4.08284653]
[1769844889205,4.12847319,2681.5,2680.3,4.08669664]
[1769844889400,4.12847319,2681.5,2680.3,4.08284653]
[1769844889601,4.12847319,2681.5,2680.4,3.89984664]
[1769844889998,4.12847319,2681.5,2680.8,3.89599653]
[1769844890197,0.00334894,2682.5,2681.0,3.89599653]
[1769844890606,4.32182328,2681.7,2681.0,3.89599653]
[1769844890909,0.00334894,2682.5,2681.0,3.89599653]
[1769844891103,4.32182328,2681.6,2681.0,3.89599653]
[1769844891303,4.32182328,2682.1,2681.0,3.89599653]
[1769844891604,0.00334894,2682.5,2681.0,3.89599653]
[1769844891807,4.31759666,2682.0,2681.0,3.89599653]
[1769844892205,0.00334894,2682.5,2681.1,0.00385011]
[1769844892404,0.00334894,2682.5,2681.0,3.89599653]
[1769844892609,4.0074035,2681.9,2681.2,3.89599653]
[1769844892801,1.02108524,2682.4,2681.2,3.89599653]
[1769844893001,6.62330394,2684.0,2681.2,3.89984664]
[1769844893309,4.0074035,2681.8,2681.2,3.89599653]
[1769844893605,6.62330394,2683.9,2681.2,3.89599653]
[1769844894004,4.00362998,2681.9,2681.2,3.89599653]
[1769844894204,0.48218619,2682.4,2681.2,4.08278653]
[1769844894404,33.31275545,2683.2,2681.2,4.08663664]
[1769844894605,4.2862755,2681.8,2681.2,4.08278653]
[1769844894806,0.48218619,2682.4,2681.2,4.08278653]
[1769844895006,5.5521259,2683.7,2681.2,4.08663664]
[1769844895208,4.2862755,2681.8,2681.2,4.08278653]
[1769844895402,4.2862755,2682.1,2681.2,4.08278653]
[1769844895604,4.44170072,2683.3,2681.4,0.00385011]
[1769844895810,4.14758785,2682.0,2681.2,0.19064011]
[1769844896006,4.14758785,2682.0,2680.5,4.08282653]
[1769844896007,7.87558785,2682.0,2680.5,4.08282653]
[1769844896212,3.728,2682.0,2680.5,4.08282653]
[1769844896404,4.14758785,2681.9,2680.5,4.08282653]
[1769844898018,3.728,2682.1,2680.5,4.08282653]
[1769844898216,4.19087132,2682.0,2680.5,4.08282653]
[1769844898719,7.64240022,2682.1,2680.5,4.08282653]
[1769844898921,4.88814046,2682.0,2680.5,4.08667664]
[1769844899111,3.728,2682.1,2680.6,0.00385011]
[1769844899313,3.91440022,2681.9,2680.5,4.08282653]
[1769844899514,7.68990893,2682.0,2680.5,4.08282653]
[1769844899714,4.89473626,2681.9,2680.5,4.08282653]
[1769844899914,3.728,2682.0,2680.5,4.08282653]
[1769844900121,8.85664295,2681.9,2680.5,4.08282653]
[1769844900314,10.05242745,2681.8,2680.5,4.08282653]
[1769844900514,4.90242745,2681.7,2680.5,4.08667664]
[1769844900713,4.10885094,2681.7,2680.6,3.89984664]
[1769844900914,4.10885094,2681.7,2680.8,3.89984664]
[1769844901115,4.10885094,2681.7,2680.8,3.89599653]
[1769844901314,4.10885094,2681.7,2681.1,0.00385011]
[1769844901521,6.47325251,2681.9,2681.1,3.89984664]
[1769844901718,10.7071259,2682.4,2680.0,2.189]
[1769844901719,4.22576665,2681.8,2681.6,3.89984664]
[1769844902013,4.27377573,2681.9,2681.6,3.37920145]
[1769844902220,4.27377573,2681.9,2681.3,0.18678]
[1769844902420,2.19947678,2682.2,2681.3,0.18678]
[1769844902626,7.11006414,2682.2,2681.8,0.21147071]
[1769844902929,4.13177163,2682.0,2681.8,0.21503514]
[1769844903427,4.13177163,2682.1,2681.8,0.00356443]
[1769844903627,4.90849112,2682.0,2681.8,0.00356443]
[1769844903822,2.19947678,2682.4,2681.8,0.00356443]
[1769844904023,3.90989961,2682.1,2681.8,0.00356443]
[1769844904425,2.19947678,2682.4,2681.8,0.00356443]
[1769844904725,3.8953943,2682.1,2681.8,0.00356443]
[1769844905121,2.19947678,2682.4,2681.5,3.61222286]
[1769844905522,4.30702102,2682.1,2681.5,3.61222286]
[1769844905722,4.30702102,2682.3,2681.5,3.61222286]
[1769844905923,4.87446395,2682.2,2681.5,3.61222286]
[1769844906123,2.63459006,2682.4,2681.5,3.61509037]
[1769844906324,33.31275545,2682.8,2681.9,3.79896286]
[1769844906525,4.87517484,2682.7,2681.9,3.79896286]
[1769844906731,2.73266688,2682.7,2682.3,3.61410772]
[1769844906930,4.21043626,2682.9,2682.3,3.80081772]
[1769844907323,0.00421917,2682.9,2682.3,3.80081772]
[1769844909919,0.00421917,2682.9,2682.3,0.18671]
[1769844914932,0.00421917,2682.9,2681.5,3.73486751]
[1769844914933,3.87969944,2682.7,2681.5,3.61697523]
[1769844915331,3.87969944,2682.5,2681.7,0.18675]
[1769844915626,3.87969944,2682.5,2681.5,0.00286751]
[1769844915830,7.81804846,2682.4,2681.5,3.61697523]
[1769844916225,3.87969944,2682.4,2681.5,3.61697523]
[1769844916428,3.93834902,2682.3,2681.5,3.61697523]
[1769844917228,3.93834902,2682.3,2681.7,0.18675]
[1769844917635,3.87969944,2682.7,2682.1,0.21147071]
[1769844917935,4.07574122,2682.6,2681.7,3.80085772]
[1769844918128,7.95544066,2682.6,2681.7,3.80085772]
[1769844918324,3.87969944,2682.5,2681.7,3.80085772]
[1769844919327,3.87969944,2682.8,2681.7,3.80085772]
[1769844919535,4.81723782,2682.7,2681.7,3.80085772]
[1769844919728,7.93615631,2682.8,2681.9,0.18673]
[1769844919928,4.05645687,2682.6,2681.9,0.18673]
[1769844920234,3.87969944,2682.6,2681.9,0.18673]
[1769844920635,3.89810359,2682.5,2681.9,0.18673]
[1769844921936,7.77780303,2682.5,2681.9,0.18673]
[1769844922234,3.87969944,2682.4,2681.9,0.18673]
[1769844922635,0.00421917,2682.9,2681.9,0.18673]
[1769844922834,8.69820868,2682.8,2681.9,0.18673]
[1769844923037,8.04704721,2682.8,2681.9,0.18673]
[1769844923431,3.87969944,2682.7,2681.9,0.18673]
[1769844923740,4.21923708,2682.6,2681.9,0.18673]
[1769844923940,8.09893652,2682.6,2681.9,0.18673]
[1769844924137,3.87969944,2682.5,2681.9,0.18673]
[1769844925336,3.87969944,2682.3,2681.9,0.18673]
[1769844925633,7.97694093,2682.2,2681.9,0.18673]
[1769844925837,7.97694093,2682.2,2681.5,3.61697523]
[1769844926034,4.09724149,2682.8,2681.5,3.61697523]
[1769844926035,3.87969944,2682.1,2681.5,3.61697523]
[1769844926230,3.87969944,2682.0,2680.8,3.61410772]
[1769844926541,3.87969944,2681.8,2680.3,3.61410772]
[1769844927142,3.87969944,2681.6,2680.8,0.18681]
[1769844927437,8.20747003,2681.9,2681.0,3.80090772]
[1769844927637,4.32777059,2681.9,2681.0,3.80090772]
[1769844927837,3.87969944,2682.2,2681.2,3.61410772]
[1769844928240,4.32777059,2682.1,2681.2,3.61410772]
[1769844928545,3.87969944,2682.2,2681.2,3.61410772]
[1769844928936,4.15598555,2682.1,2681.2,3.61410772]
[1769844929136,8.03568499,2682.1,2681.5,0.18677]
[1769844929538,3.87969944,2682.1,2681.5,0.18677]
[1769844929745,8.02852298,2682.0,2681.5,0.18677]
[1769844930143,3.87969944,2682.3,2681.5,0.18677]
[1769844930550,8.02852298,2682.2,2681.5,0.18677]
[1769844930846,3.87969944,2682.2,2681.5,0.18677]
[1769844931143,4.14882354,2682.1,2681.5,3.80087772]
[1769844931442,4.30998022,2682.2,2681.5,3.80087772]
[1769844931841,4.30998022,2682.3,2681.5,3.80087772]
[1769844931842,3.87969944,2682.5,2681.5,3.80087772]
[1769844932142,4.14433681,2682.4,2681.5,3.80087772]
[1769844932342,4.14433681,2682.4,2681.7,3.61410772]
[1769844932645,5.231,2682.6,2681.7,3.61410772]
[1769844932840,9.11069944,2682.6,2681.7,3.61410772]
[1769844933042,4.16777119,2682.5,2681.7,3.61410772]
[1769844933242,8.04747063,2682.5,2681.7,3.61410772]
[1769844934446,8.04747063,2682.5,2681.7,3.80085772]
[1769844937846,4.16777119,2682.5,2681.7,3.80085772]
[1769844938046,3.6575325,2682.8,2681.7,3.80085772]
[1769844938348,7.78085521,2682.8,2681.8,3.70639229]
[1769844938552,3.6575325,2682.7,2682.0,0.18673]
[1769844938745,3.6575325,2682.7,2680.9,3.70639229]
[1769844938947,3.6575325,2682.5,2681.4,0.18677]
[1769844939444,3.60858138,2682.3,2681.7,0.18675]
[1769844939644,3.60858138,2682.8,2681.9,3.70528513]
[1769844939845,3.60858138,2682.8,2681.9,0.18673]
[1769844940037,3.60858138,2682.5,2681.9,0.18673]
[1769844940551,3.60858138,2682.3,2681.9,0.18673]
[1769844941447,3.60858138,2682.8,2681.9,0.18673]
[1769844941843,3.60858138,2682.7,2681.9,0.18673]
[1769844942351,3.60858138,2682.5,2681.9,0.18673]
[1769844942743,7.7844772,2682.4,2681.9,0.18673]
[1769844943152,3.60858138,2682.4,2681.9,0.18673]
[1769844943352,4.17589582,2682.3,2681.9,0.18673]
[1769844943661,7.7844772,2682.3,2681.9,0.18673]
[1769844957058,3.60858138,2682.5,2681.9,0.18673]
[1769844957561,7.74888254,2682.4,2681.9,0.18673]
[1769844957955,3.60858138,2682.4,2681.9,0.18673]
[1769844958764,3.60858138,2682.4,2681.3,3.51855513]
[1769844959262,3.60858138,2682.4,2681.9,0.18673]
[1769844963370,3.60858138,2682.2,2681.2,0.18678]
[1769844963863,7.57602658,2682.3,2681.2,0.18678]
[1769844963864,3.60858138,2682.0,2681.2,0.18678]
[1769844964370,3.60858138,2681.8,2681.2,0.18678]
[1769844966366,3.60858138,2682.2,2681.4,3.51855513]
[1769844966565,3.60858138,2682.2,2681.5,0.18676]
[1769844966761,7.92818875,2682.4,2681.7,0.18675]
[1769844966961,3.80560375,2682.4,2681.7,0.18675]
[1769844970476,3.80560375,2682.8,2682.0,0.18673]
[1769844970871,3.80560375,2682.5,2682.0,0.18673]
[1769844985680,0.00421917,2682.9,2681.8,3.61630786]
[1769844985887,0.00421917,2682.9,2682.2,0.18671]
[1769844986185,4.25614502,2682.8,2682.2,0.18671]
[1769844987585,0.00421917,2682.9,2682.3,3.80301786]
[1769844987785,0.00421917,2682.9,2682.4,3.80300786]
[1769844988182,3.80982292,2682.9,2682.4,0.1867]
[1769844990082,0.00421917,2682.9,2682.4,3.80300786]
[1769844990282,3.80560375,2683.1,2682.4,3.80300786]
[1769844991288,3.80928332,2683.1,2682.4,3.80300786]
[1769844994390,3.80928332,2683.1,2682.5,0.1867]
[1769844998194,3.62707364,2682.8,2681.8,3.71734671]
[1769844999296,3.62707364,2682.8,2682.2,0.18671]
[1769845004704,3.62707364,2682.8,2681.7,3.79428851]
[1769845005194,3.62707364,2682.8,2682.2,0.18671]
[1769845008202,3.62707364,2682.8,2682.3,0.18671]
[1769845011502,3.63515864,2683.0,2682.4,0.1867]
[1769845011699,0.00367957,2683.1,2682.5,0.18669]
[1769845011895,3.63883821,2683.1,2682.5,0.18669]
[1769845022908,3.63883821,2683.1,2681.5,0.3009365]
[1769845022909,0.18672,2682.1,2679.9,4.07887956]
[1769845023115,1.23727231,2680.5,2679.9,10.07215791]
[1769845023319,0.03343683,2680.4,2679.9,0.18687]
[1769845023609,0.03343683,2680.3,2679.6,3.89200956]
[1769845023805,0.03343683,2680.3,2679.7,9.88528791]
[1769845024010,1.23727231,2679.8,2679.1,3.87529115]
[1769845024212,1.27070914,2679.8,2678.8,3.87529115]
[1769845025010,0.03343683,2679.7,2678.8,9.88956291]
[1769845025210,4.16434441,2679.7,2678.9,3.87529115]
[1769845025517,0.03343683,2680.0,2678.9,3.87529115]
[1769845025812,4.08551533,2679.9,2679.0,9.88528791]
[1769845026112,0.23122941,2679.8,2678.8,0.004275]
[1769845026313,0.23122941,2679.8,2678.9,9.88528791]
[1769845026512,4.31674474,2679.7,2678.9,9.88528791]
[1769845026715,0.23946821,2679.6,2678.9,9.88528791]
[1769845026910,4.25436226,2679.8,2679.0,3.77619173]
[1769845027208,0.23946821,2680.1,2679.0,3.77619173]
[1769845027415,0.23946821,2680.1,2678.8,0.191225]
[1769845027605,0.31786856,2679.7,2678.8,0.191225]
[1769845028015,0.31786856,2679.5,2678.8,10.07651291]
[1769845028220,0.31786856,2679.5,2678.8,0.191225]
[1769845028414,4.26021818,2679.4,2678.8,0.191225]
[1769845028714,0.31786856,2679.4,2678.8,0.191225]
[1769845029018,4.2679123,2679.3,2678.8,0.191225]
[1769845029916,4.5197281,2679.3,2678.8,0.191225]
[1769845030315,0.2518158,2679.6,2678.9,13.65530584]
[1769845030616,4.00804555,2679.5,2678.9,13.65530584]
[1769845031120,0.2518158,2679.9,2678.9,13.65530584]
[1769845031420,4.05801096,2679.8,2679.0,3.77001793]
[1769845032218,4.2823007,2679.8,2679.0,3.77001793]
[1769845032519,0.22428974,2679.7,2678.9,9.88528791]
[1769845032913,0.22428974,2679.6,2678.8,0.191225]
[1769845033418,0.03306474,2679.4,2678.8,0.18695]
[1769845033721,3.99555204,2679.3,2678.8,0.18695]
[1769845034309,4.19875962,2679.5,2678.8,0.1879786]
[1769845034510,4.19875962,2680.1,2678.8,0.1879786]
[1769845034707,2.19089357,2680.3,2678.8,0.1879786]
[1769845035116,3.9021493,2680.0,2678.8,0.1879786]
[1769845035310,3.9021493,2680.2,2678.8,0.1879786]
[1769845035511,3.9021493,2679.9,2678.8,0.1879786]
[1769845035813,2.19089357,2680.3,2678.8,0.1879786]
[1769845035814,3.9021493,2680.0,2678.8,0.1879786]
[1769845036018,2.19089357,2680.3,2678.9,3.89592584]
[1769845036320,3.89092413,2679.9,2678.9,3.89592584]
[1769845036518,3.89092413,2680.1,2679.0,9.88528791]
[1769845036820,2.19089357,2680.3,2679.0,9.88528791]
[1769845037018,4.0199085,2680.0,2679.0,9.88528791]
[1769845037215,4.0199085,2680.1,2678.8,0.1879786]